fUST/lending_fUST_20251206
["ID","MTS","AMOUNT","RATE_DAILY","PERIOD"]
[396483990,1764985750773,-685.4320162,0.00012119,2]
[396483991,1764985750800,-500.0,0.00012119,2]
[396483992,1764985750825,-685.4320162,0.00012119,2]
[396483993,1764985750851,-500.0,0.00012119,2]
[396483994,1764985750879,-519.16767216,0.00012119,2]
[396483995,1764985750906,-685.4320162,0.00012119,2]
[396483996,1764985750936,-519.16767216,0.00012119,2]
[396483997,1764985750964,-500.0,0.00012119,2]
[396483998,1764985750990,-519.16767216,0.00012119,2]
[396483999,1764985751016,-500.0,0.00012119,2]
[396484000,1764985751041,-685.4320162,0.00012119,2]
[396484001,1764985751066,-519.16767216,0.00012119,2]
[396484002,1764985751093,-500.0,0.00012119,2]
[396484003,1764985751119,-685.4320162,0.00012119,2]
[396484004,1764985751146,-519.16767216,0.00012119,2]
[396484005,1764985751172,-500.0,0.00012119,2]
[396484006,1764985751199,-685.4320162,0.00012119,2]
[396484007,1764985751229,-519.16767216,0.00012119,2]
[396484008,1764985751257,-500.0,0.00012119,2]
[396484009,1764985751287,-685.4320162,0.00012119,2]
[396484010,1764985751320,-519.16767216,0.00012119,2]
[396484011,1764985751351,-500.0,0.00012119,2]
[396484012,1764985751381,-685.4320162,0.00012119,2]
[396484013,1764985751411,-500.0,0.00012119,2]
[396484014,1764985751443,-519.16767216,0.00012119,2]
[396484015,1764985751475,-685.4320162,0.00012119,2]
[396484016,1764985751504,-500.0,0.00012119,2]
[396484017,1764985751532,-519.16767216,0.00012119,2]
[396484018,1764985751565,-685.4320162,0.00012119,2]
[396484019,1764985751598,-500.0,0.00012119,2]
[396484020,1764985751627,-519.16767216,0.00012119,2]
[396484021,1764985751659,-685.4320162,0.00012119,2]
[396484022,1764985751689,-685.4320162,0.00012119,2]
[396484023,1764985751717,-500.0,0.00012119,2]
[396484024,1764985751747,-519.16767216,0.00012119,2]
[396484025,1764985751785,-500.0,0.00012119,2]
[396484026,1764985751819,-685.4320162,0.00012119,2]
[396484027,1764985751850,-519.16767216,0.00012119,2]
[396484028,1764985751880,-500.0,0.00012119,2]
[396484029,1764985751913,-685.4320162,0.00012119,2]
[396484030,1764985751947,-519.16767216,0.00012119,2]
[396484031,1764985751979,-500.0,0.00012119,2]
[396484032,1764985752006,-685.4320162,0.00012119,2]
[396484033,1764985752036,-519.16767216,0.00012119,2]
[396484035,1764985752334,-500.0,0.00012119,2]
[396484036,1764985752368,-519.16767216,0.00012119,2]
[396484037,1764985752398,-685.4320162,0.00012119,2]
[396484038,1764985752426,-685.4320162,0.00012119,2]
[396484039,1764985752453,-519.16767216,0.00012119,2]
[396484040,1764985752480,-500.0,0.00012119,2]
[396484041,1764985752515,-519.16767216,0.00012119,2]
[396484042,1764985752544,-685.4320162,0.00012119,2]
[396484043,1764985752573,-500.0,0.00012119,2]
[396484044,1764985752605,-519.16767216,0.00012119,2]
[396484045,1764985752639,-685.4320162,0.00012119,2]
[396484046,1764985752672,-500.0,0.00012119,2]
[396484047,1764985752701,-519.16767216,0.00012119,2]
[396484048,1764985752730,-519.16767216,0.00012119,2]
[396484049,1764985752756,-169.39716207,0.00012119,2]
[396484050,1764985752782,-519.16767216,0.00012119,2]
[396484051,1764985752809,-500.0,0.00012119,2]
[396484052,1764985752838,-519.16767216,0.00012119,2]
[396484053,1764985752867,-685.4320162,0.00012119,2]
[396484054,1764985752897,-500.0,0.00012119,2]
[396484055,1764985752925,-500.0,0.00012119,2]
[396484056,1764985752954,-685.4320162,0.00012119,2]
[396484057,1764985752982,-519.16767216,0.00012119,2]
[396484058,1764985753011,-500.0,0.00012119,2]
[396484059,1764985753041,-519.16767216,0.00012119,2]
[396484060,1764985753068,-519.16767216,0.00012119,2]
[396484061,1764985753095,-685.4320162,0.00012119,2]
[396484062,1764985753121,-500.0,0.00012119,2]
[396484063,1764985753147,-519.16767216,0.00012119,2]
[396484064,1764985753173,-519.16767216,0.00012119,2]
[396484065,1764985753199,-519.16767216,0.00012119,2]
[396484066,1764985753223,-519.16767216,0.00012119,2]
[396484067,1764985753251,-519.16767216,0.00012119,2]
[396484068,1764985753281,-519.16767216,0.00012119,2]
[396484069,1764985753308,-685.4320162,0.00012119,2]
[396484070,1764985753333,-519.16767216,0.00012119,2]
[396484071,1764985753362,-519.16767216,0.00012119,2]
[396484072,1764985753390,-519.16767216,0.00012119,2]
[396484073,1764985753418,-500.0,0.00012119,2]
[396484074,1764985753447,-500.0,0.00012119,2]
[396484075,1764985753482,-500.0,0.00012119,2]
[396484076,1764985753510,-500.0,0.00012119,2]
[396484077,1764985753537,-500.0,0.00012119,2]
[396484078,1764985753564,-500.0,0.00012119,2]
[396484079,1764985753593,-500.0,0.00012119,2]
[396484080,1764985753628,-500.0,0.00012119,2]
[396484081,1764985753659,-500.0,0.00012119,2]
[396484082,1764985753688,-500.0,0.00012119,2]
[396484083,1764985753720,-500.0,0.00012119,2]
[396484084,1764985753746,-500.0,0.00012119,2]
[396484085,1764985753775,-300.0,0.00012119,2]
[396484086,1764985753800,-500.0,0.00012119,2]
[396484087,1764985753832,-2512.8422193,0.0001212,2]
[396484088,1764985754249,3013.81686478,0.00011255,2]
[396484106,1764985832299,-255.49749186,0.00012118,2]
[396484107,1764985832311,-322.11980627,0.00012118,2]
[396484108,1764985832321,-500.0,0.00012118,2]
[396484109,1764985832332,-107.14270187,0.00012118,2]
[396484110,1764985832343,-392.85729813,0.00012118,2]
[396484111,1764985832353,-500.0,0.00012118,2]
[396484112,1764985832363,-82.87244058,0.00012118,2]
[396484136,1764985838368,-320.80769379,0.00012118,2]
[396484137,1764985838380,-96.31986563,0.00012118,2]
[396484138,1764985838389,-500.0,0.00012118,2]
[396484139,1764985838399,-500.0,0.00012118,2]
[396484140,1764985838408,-500.0,0.00012118,2]
[396484141,1764985838417,-451.66116701,0.00012118,2]
[396484142,1764985838429,-48.33883299,0.00012118,2]
[396484143,1764985838438,-500.0,0.00012118,2]
[396484144,1764985838447,-500.0,0.00012118,2]
[396484145,1764985838456,-500.0,0.00012118,2]
[396484146,1764985838465,-500.0,0.00012118,2]
[396484147,1764985838474,-500.0,0.00012118,2]
[396484148,1764985838484,-500.0,0.00012118,2]
[396484149,1764985838493,-500.0,0.00012118,2]
[396484150,1764985838502,-627.04947572,0.00012118,2]
[396484151,1764985838512,-500.0,0.00012118,2]
[396484152,1764985838521,-500.0,0.00012118,2]
[396484153,1764985838531,-500.0,0.00012118,2]
[396484154,1764985838540,-500.0,0.00012118,2]
[396484155,1764985838550,-500.0,0.00012118,2]
[396484156,1764985838560,-13.81434088,0.00012118,2]
[396484157,1764985838571,-486.18565912,0.00012118,2]
[396484158,1764985838581,-500.0,0.00012118,2]
[396484159,1764985838591,-500.0,0.00012118,2]
[396484160,1764985838600,-69.53469947,0.00012118,2]
[396484161,1764985838612,-279.10748082,0.00012118,2]
[396484162,1764985838624,-151.35781971,0.00012118,2]
[396484163,1764985838634,-150.64218029,0.00012118,2]
[396484164,1764985838684,-349.35781971,0.00012118,2]
[396484165,1764985838694,-500.0,0.00012118,2]
[396484166,1764985838705,-500.0,0.00012118,2]
[396484167,1764985838715,-500.0,0.00012118,2]
[396484168,1764985838725,-500.0,0.00012118,2]
[396484169,1764985838735,-500.0,0.00012118,2]
[396484170,1764985838751,-500.0,0.00012118,2]
[396484171,1764985838762,-500.0,0.00012118,2]
[396484172,1764985838772,-500.0,0.00012118,2]
[396484173,1764985838783,-500.0,0.00012118,2]
[396484174,1764985838793,-500.0,0.00012118,2]
[396484175,1764985838803,-500.0,0.00012118,2]
[396484176,1764985838814,-500.0,0.00012118,2]
[396484177,1764985838824,-500.0,0.00012118,2]
[396484178,1764985838833,-624.96080054,0.00012118,2]
[396484179,1764985838844,-251.9397162,0.00012118,2]
[396484180,1764985838853,-500.0,0.00012118,2]
[396484181,1764985838863,-500.0,0.00012118,2]
[396484182,1764985838873,-500.0,0.00012118,2]
[396484183,1764985838882,-500.0,0.00012118,2]
[396484184,1764985838892,-500.0,0.00012118,2]
[396484185,1764985838902,-500.0,0.00012118,2]
[396484186,1764985838911,-500.0,0.00012118,2]
[396484187,1764985838921,-500.0,0.00012118,2]
[396484188,1764985838930,-500.0,0.00012118,2]
[396484189,1764985838940,-500.0,0.00012118,2]
[396484190,1764985838949,-500.0,0.00012118,2]
[396484191,1764985838959,-500.0,0.00012118,2]
[396484192,1764985838969,-500.0,0.00012118,2]
[396484193,1764985838979,-500.0,0.00012118,2]
[396484194,1764985838989,-500.0,0.00012118,2]
[396484195,1764985838999,-500.0,0.00012118,2]
[396484196,1764985839009,-500.0,0.00012118,2]
[396484197,1764985839020,-500.0,0.00012118,2]
[396484198,1764985839029,-500.0,0.00012118,2]
[396484199,1764985839040,-500.0,0.00012118,2]
[396484200,1764985839049,-196.0440309,0.00012118,2]
[396484201,1764985839059,-182.70141749,0.00012119,2]
[396484202,1764985839069,-249.0,0.00012119,2]
[396484203,1764985839079,-7060.49497206,0.0001212,2]
[396484204,1764985839091,-5582.1560482,0.0001212,2]
[396484205,1764985839103,-17986.45151146,0.0001212,2]
[396484206,1764985839115,-8765.35601477,0.0001212,2]
[396484207,1764985839124,-305.16968803,0.00012218,2]
[396484208,1764985839134,-500.0,0.00012218,2]
[396484209,1764985839144,-500.0,0.00012218,2]
[396484210,1764985839154,-500.0,0.00012218,2]
[396484211,1764985839165,-500.0,0.00012218,2]
[396484212,1764985839174,-500.0,0.00012218,2]
[396484213,1764985839184,-190.82487581,0.00012218,2]
[396484214,1764985839194,-500.0,0.00012219,2]
[396484215,1764985839203,-500.0,0.00012219,2]
[396484216,1764985839213,-500.0,0.00012219,2]
[396484217,1764985839223,-579.36504899,0.00012219,2]
[396484223,1764985840573,-1907.22495101,0.00012219,2]
[396484224,1764985840583,-2777.06,0.00012219,2]
[396484225,1764985840592,-1537.54,0.00012219,2]
[396484226,1764985840602,-500.0,0.00012219,2]
[396484227,1764985840612,-722.56,0.00012219,2]
[396484228,1764985840622,-500.0,0.00012219,2]
[396484229,1764985840632,-561.75,0.00012219,2]
[396484230,1764985840642,-151.0,0.0001222,2]
[396484231,1764985840651,-151.0,0.0001222,2]
[396484232,1764985840665,-151.0,0.0001222,2]
[396484233,1764985840674,-151.0,0.0001222,2]
[396484234,1764985840683,-151.0,0.0001222,2]
[396484235,1764985840693,-151.0,0.0001222,2]
[396484236,1764985840703,-151.0,0.0001222,2]
[396484237,1764985840713,-264.49343676,0.0001222,2]
[396484238,1764985840722,-151.60996163,0.00012221,2]
[396484239,1764985840732,-500.0,0.00012222,2]
[396484240,1764985840742,-1197.32,0.00012222,2]
[396484241,1764985840752,-500.0,0.00012222,2]
[396484242,1764985840761,-500.0,0.00012222,2]
[396484243,1764985840770,-500.0,0.00012222,2]
[396484244,1764985840780,-500.0,0.00012222,2]
[396484245,1764985840789,-706.1,0.00012222,2]
[396484246,1764985840799,-516.16,0.00012222,2]
[396484247,1764985840808,-500.0,0.00012222,2]
[396484248,1764985840817,-500.0,0.00012222,2]
[396484249,1764985840827,-462.15883439,0.00012222,2]
[396484250,1764985840840,-37.84116561,0.00012222,2]
[396484251,1764985840850,-500.0,0.00012222,2]
[396484252,1764985840860,-1201.27,0.00012222,2]
[396484253,1764985840869,-500.0,0.00012222,2]
[396484254,1764985840878,-500.0,0.00012222,2]
[396484255,1764985840887,-737.66,0.00012222,2]
[396484256,1764985840896,-500.0,0.00012222,2]
[396484257,1764985840905,-500.0,0.00012222,2]
[396484258,1764985840914,-500.0,0.00012222,2]
[396484259,1764985840923,-500.0,0.00012222,2]
[396484260,1764985840933,-500.0,0.00012222,2]
[396484261,1764985840942,-500.0,0.00012222,2]
[396484262,1764985840952,-1596.95,0.00012222,2]
[396484263,1764985840961,-500.0,0.00012222,2]
[396484264,1764985840970,-674.1,0.00012222,2]
[396484265,1764985840979,-500.0,0.00012222,2]
[396484266,1764985840988,-500.0,0.00012222,2]
[396484267,1764985840997,-568.44,0.00012222,2]
[396484268,1764985841006,-500.0,0.00012222,2]
[396484269,1764985841015,-500.0,0.00012222,2]
[396484270,1764985841024,-578.87975915,0.00012222,2]
[396484271,1764985841033,-1490.11,0.00012222,2]
[396484272,1764985841043,-500.0,0.00012222,2]
[396484273,1764985841052,-500.0,0.00012222,2]
[396484274,1764985841062,-500.0,0.00012222,2]
[396484275,1764985841071,-500.0,0.00012222,2]
[396484276,1764985841082,-511.46,0.00012222,2]
[396484277,1764985841091,-500.0,0.00012222,2]
[396484278,1764985841100,-500.0,0.00012222,2]
[396484279,1764985841110,-500.0,0.00012222,2]
[396484280,1764985841119,-500.0,0.00012222,2]
[396484281,1764985841128,-500.0,0.00012222,2]
[396484282,1764985841138,-534.21,0.00012222,2]
[396484283,1764985841147,-500.0,0.00012222,2]
[396484284,1764985841156,-500.0,0.00012222,2]
[396484285,1764985841166,-500.0,0.00012222,2]
[396484286,1764985841175,-1423.61,0.00012222,2]
[396484287,1764985841186,-495.79045159,0.00012222,2]
[396484288,1764985841195,-500.0,0.00012222,2]
[396484289,1764985841204,-500.0,0.00012222,2]
[396484290,1764985841213,-500.0,0.00012222,2]
[396484291,1764985841222,-500.0,0.00012222,2]
[396484292,1764985841231,-500.0,0.00012222,2]
[396484293,1764985841241,-2187.87,0.00012222,2]
[396484294,1764985841250,-500.0,0.00012222,2]
[396484295,1764985841259,-14.82662649,0.00012222,2]
[396484296,1764985841271,-398.076,0.00012222,2]
[396484299,1764985843563,-500.0,0.00012222,2]
[396484300,1764985843573,-690.32,0.00012222,2]
[396484301,1764985843583,-500.0,0.00012222,2]
[396484302,1764985843592,-500.0,0.00012222,2]
[396484303,1764985843601,-500.0,0.00012222,2]
[396484304,1764985843611,-500.0,0.00012222,2]
[396484305,1764985843620,-705.52,0.00012222,2]
[396484306,1764985843630,-500.0,0.00012222,2]
[396484307,1764985843640,-598.16,0.00012222,2]
[396484308,1764985843650,-2552.03,0.00012222,2]
[396484309,1764985843663,-500.0,0.00012222,2]
[396484310,1764985843672,-500.0,0.00012222,2]
[396484311,1764985843682,-500.0,0.00012222,2]
[396484312,1764985843690,-500.0,0.00012222,2]
[396484313,1764985843699,-500.0,0.00012222,2]
[396484314,1764985843708,-500.0,0.00012222,2]
[396484315,1764985843718,-1489.85,0.00012222,2]
[396484316,1764985843737,-1347.94,0.00012222,2]
[396484317,1764985843747,-853.78,0.00012222,2]
[396484318,1764985843757,-500.0,0.00012222,2]
[396484319,1764985843766,-500.0,0.00012222,2]
[396484320,1764985843776,-500.0,0.00012222,2]
[396484321,1764985843786,-522.49,0.00012222,2]
[396484322,1764985843795,-500.0,0.00012222,2]
[396484323,1764985843805,-500.0,0.00012222,2]
[396484324,1764985843814,-558.41,0.00012222,2]
[396484325,1764985843823,-500.0,0.00012222,2]
[396484326,1764985843832,-500.0,0.00012222,2]
[396484327,1764985843842,-500.0,0.00012222,2]
[396484328,1764985843851,-500.0,0.00012222,2]
[396484329,1764985843861,-162.92126647,0.00012222,2]
[396484330,1764985843870,-500.0,0.00012222,2]
[396484331,1764985843879,-500.0,0.00012222,2]
[396484332,1764985843887,-500.0,0.00012222,2]
[396484333,1764985843896,-1583.97,0.00012222,2]
[396484334,1764985843906,-615.15,0.00012222,2]
[396484335,1764985843915,-515.58,0.00012222,2]
[396484336,1764985843924,-500.0,0.00012222,2]
[396484337,1764985843934,-500.0,0.00012222,2]
[396484338,1764985843944,-1362.37,0.00012222,2]
[396484339,1764985843954,-629.88,0.00012222,2]
[396484340,1764985843963,-500.0,0.00012222,2]
[396484341,1764985843973,-500.0,0.00012222,2]
[396484342,1764985843982,-500.0,0.00012222,2]
[396484343,1764985843992,-500.0,0.00012222,2]
[396484344,1764985844002,-500.0,0.00012222,2]
[396484345,1764985844012,-716.16,0.00012222,2]
[396484346,1764985844021,-500.0,0.00012222,2]
[396484347,1764985844030,-512.53,0.00012222,2]
[396484348,1764985844039,-500.0,0.00012222,2]
[396484349,1764985844048,-500.0,0.00012222,2]
[396484350,1764985844058,-1138.74,0.00012222,2]
[396484351,1764985844067,-2361.02,0.00012222,2]
[396484352,1764985844077,-500.0,0.00012222,2]
[396484353,1764985844086,-500.0,0.00012222,2]
[396484354,1764985844095,-1656.97,0.00012222,2]
[396484355,1764985844105,-1053.06,0.00012222,2]
[396484356,1764985844115,-500.0,0.00012222,2]
[396484357,1764985844123,-500.0,0.00012222,2]
[396484358,1764985844134,-500.0,0.00012222,2]
[396484359,1764985844144,-763.41,0.00012222,2]
[396484360,1764985844153,-500.0,0.00012222,2]
[396484361,1764985844164,-500.0,0.00012223,2]
[396484362,1764985844173,-151.29338897,0.00012224,2]
[396484363,1764985844182,-500.0,0.00012224,2]
[396484364,1764985844191,-151.0,0.00012224,2]
[396484365,1764985844200,-151.0,0.00012224,2]
[396484366,1764985844210,-151.0,0.00012224,2]
[396484367,1764985844219,-500.0,0.00012224,2]
[396484368,1764985844229,-500.0,0.00012224,2]
[396484369,1764985844238,-500.0,0.00012224,2]
[396484370,1764985844247,-888.17970168,0.00012224,2]
[396484400,1764985846850,-500.0,0.00012222,2]
[396484401,1764985846860,-290.92029832,0.00012224,2]
[396484402,1764985846869,-730.42083837,0.00012224,2]
[396484458,1764985904440,150.0,7.333e-05,2]
[396484490,1764986883701,248.43,0.00010989,2]
[396484491,1764986942344,250.0,0.00013106,3]
[396484514,1764987032589,-761.45041389,0.00011533,2]
[396484521,1764987038641,-612.45701632,0.00011533,2]
[396484522,1764987038747,-1180.13130932,0.00011533,2]
[396484523,1764987038756,-244.0,0.00011533,2]
[396484524,1764987038766,-182.04738914,0.0001165,2]
[396484525,1764987038775,-500.0,0.00011916,2]
[396484526,1764987038784,-583.54885736,0.00011916,2]
[396484528,1764987038793,-500.0,0.00011916,2]
[396484529,1764987038802,-500.0,0.00011916,2]
[396484530,1764987038811,-282.13740085,0.00011916,2]
[396484531,1764987038820,-500.0,0.00011916,2]
[396484532,1764987038830,-500.0,0.00011916,2]
[396484533,1764987038839,-500.0,0.00011916,2]
[396484534,1764987038848,-500.0,0.00011916,2]
[396484535,1764987038856,-500.0,0.00011916,2]
[396484536,1764987038866,-500.0,0.00011916,2]
[396484537,1764987038875,-500.0,0.00011916,2]
[396484538,1764987038885,-500.0,0.00011916,2]
[396484539,1764987038894,-500.0,0.00011916,2]
[396484540,1764987038904,-536.96671189,0.00011916,2]
[396484541,1764987038914,-500.0,0.00011916,2]
[396484542,1764987038923,-500.0,0.00011916,2]
[396484543,1764987038933,-312.49608006,0.00011916,2]
[396484544,1764987038942,-500.0,0.00011916,2]
[396484545,1764987038952,-500.0,0.00011916,2]
[396484546,1764987038963,-500.0,0.00011916,2]
[396484547,1764987038973,-500.0,0.00011916,2]
[396484548,1764987038982,-500.0,0.00011916,2]
[396484549,1764987038991,-500.0,0.00011916,2]
[396484550,1764987039000,-500.0,0.00011916,2]
[396484551,1764987039010,-500.0,0.00011916,2]
[396484552,1764987039019,-3179.88818507,0.00011917,2]
[396484553,1764987039031,-5508.53,0.00011917,2]
[396484554,1764987039042,-1599.44943019,0.00011917,2]
[396484559,1764987040739,-21011.97357775,0.00011917,2]
[396484561,1764987043763,-20594.82329311,0.00011917,2]
[396484562,1764987043773,-1200.0,0.00011995,2]
[396484563,1764987043783,-3614.85586496,0.00011996,2]
[396484564,1764987043792,-300.0,0.00012012,2]
[396484565,1764987043803,-300.0,0.00012012,2]
[396484566,1764987043812,-300.0,0.00012012,2]
[396484567,1764987043821,-300.0,0.00012012,2]
[396484568,1764987043830,-1200.0,0.00012013,2]
[396484569,1764987043840,-213.61878162,0.00012013,2]
[396484570,1764987043849,-500.0,0.00012013,2]
[396484571,1764987043859,-500.0,0.00012013,2]
[396484572,1764987043869,-328.83545664,0.00012013,2]
[396484573,1764987043879,-500.0,0.00012013,2]
[396484574,1764987043888,-500.0,0.00012013,2]
[396484575,1764987043898,-500.0,0.00012014,2]
[396484576,1764987043907,-822.71842365,0.00012014,2]
[396484588,1764987055932,1863.6512392,0.00011144,2]
[396484657,1764987912296,7737.9287608,0.00010985,2]
[396484658,1764987912319,10000.01,0.00010985,2]
[396484659,1764987912340,572.2695668,0.00010985,2]
[396484666,1764988103014,288.25028043,0.0001,2]
[396484667,1764988111212,5000.0,0.00011255,2]
[396484668,1764988112819,1000.0,0.0001,2]
[396484669,1764988119618,3139.49015277,0.0001,2]
[396484670,1764988119642,10000.01,0.0001,2]
[396484671,1764988119664,1884.14080851,0.0001,2]
[396484672,1764988127378,340.92801922,0.00011255,2]
[396484675,1764988142694,250.0,0.00013105,3]
[396484678,1764988201206,308.52431227,0.00011076,2]
[396484680,1764988203805,257.10359356,0.00011076,2]
[396484681,1764988206344,369.85894555,0.00011076,2]
[396484723,1764988231709,-614.35401849,0.0001137,2]
[396484832,1764988237750,-1224.82266252,0.0001137,2]
[396484833,1764988237761,-540.61021453,0.0001137,2]
[396484834,1764988237771,-320.0,0.0001137,2]
[396484835,1764988237806,-1181.34538107,0.0001137,2]
[396484836,1764988237832,-504.32018305,0.0001137,2]
[396484837,1764988237858,-614.54754034,0.0001137,2]
[396484838,1764988237882,-243.0,0.0001137,2]
[396484839,1764988237906,-181.40644136,0.00011485,2]
[396484840,1764988237930,-18.47691642,0.00011679,2]
[396484841,1764988237957,-158.33252277,0.00011679,2]
[396484842,1764988237979,-500.0,0.00011815,2]
[396484843,1764988238002,-252.39325949,0.00011815,2]
[396484844,1764988238025,-500.0,0.00011815,2]
[396484845,1764988238046,-500.0,0.00011815,2]
[396484846,1764988238069,-338.91567888,0.00011815,2]
[396484847,1764988238092,-300.0,0.00011815,2]
[396484848,1764988238117,-300.0,0.00011815,2]
[396484849,1764988238138,-120.14683782,0.00011815,2]
[396484850,1764988238153,-1079.85316218,0.00011815,2]
[396484851,1764988238163,-349051.36006542,0.00011816,2]
[396484852,1764988238173,-191.05858825,0.00011816,2]
[396484853,1764988238182,-191.05858824,0.00011865,2]
[396484854,1764988238192,-269.0,0.000119,2]
[396484855,1764988238201,-2734.65301982,0.00011913,2]
[396484856,1764988238211,-500.0,0.00011913,2]
[396484857,1764988238220,-2918.39,0.00011913,2]
[396484858,1764988238230,-500.0,0.00011913,2]
[396484859,1764988238239,-500.0,0.00011913,2]
[396484860,1764988238249,-640.79152231,0.00011913,2]
[396484861,1764988238259,-2627.07,0.00011913,2]
[396484862,1764988238268,-2382.98,0.00011913,2]
[396484863,1764988238277,-500.0,0.00011913,2]
[396484864,1764988238287,-1473.47,0.00011913,2]
[396484865,1764988238296,-692.45,0.00011913,2]
[396484866,1764988238306,-538.34,0.00011913,2]
[396484867,1764988238315,-500.0,0.00011913,2]
[396484868,1764988238324,-1364.29,0.00011913,2]
[396484869,1764988238334,-500.0,0.00011913,2]
[396484870,1764988238343,-500.0,0.00011913,2]
[396484871,1764988238353,-500.0,0.00011913,2]
[396484872,1764988238362,-511.95,0.00011913,2]
[396484873,1764988238372,-501.44,0.00011914,2]
[396484874,1764988238381,-500.0,0.00011914,2]
[396484875,1764988238390,-500.0,0.00011914,2]
[396484876,1764988238400,-2096.71,0.00011914,2]
[396484877,1764988238409,-500.0,0.00011914,2]
[396484878,1764988238418,-500.0,0.00011914,2]
[396484879,1764988238427,-500.0,0.00011914,2]
[396484880,1764988238437,-500.0,0.00011914,2]
[396484881,1764988238446,-500.0,0.00011914,2]
[396484882,1764988238455,-805.71,0.00011914,2]
[396484883,1764988238465,-1291.78,0.00011914,2]
[396484884,1764988238474,-983.46,0.00011914,2]
[396484885,1764988238484,-500.0,0.00011914,2]
[396484886,1764988238493,-500.0,0.00011914,2]
[396484887,1764988238503,-500.0,0.00011914,2]
[396484888,1764988238512,-500.0,0.00011914,2]
[396484889,1764988238521,-514.31,0.00011914,2]
[396484890,1764988238530,-500.0,0.00011914,2]
[396484891,1764988238539,-191.05858824,0.00011914,2]
[396484892,1764988238548,-643.32,0.00011914,2]
[396484893,1764988238557,-500.0,0.00011914,2]
[396484894,1764988238566,-500.0,0.00011914,2]
[396484895,1764988238576,-500.0,0.00011914,2]
[396484896,1764988238585,-500.0,0.00011914,2]
[396484897,1764988238594,-686.32,0.00011914,2]
[396484898,1764988238603,-1091.3,0.00011914,2]
[396484899,1764988238612,-500.0,0.00011915,2]
[396484900,1764988238625,-1147.44,0.00011915,2]
[396484901,1764988238636,-500.0,0.00011915,2]
[396484902,1764988238645,-500.0,0.00011915,2]
[396484903,1764988238654,-570.40056085,0.00011915,2]
[396484904,1764988238663,-500.0,0.00011915,2]
[396484905,1764988238673,-676.68,0.00011915,2]
[396484906,1764988238682,-500.0,0.00011915,2]
[396484907,1764988238692,-473.1436382,0.00011915,2]
[396484908,1764988238701,-500.0,0.00011915,2]
[396484909,1764988238711,-500.0,0.00011915,2]
[396484910,1764988238720,-500.0,0.00011915,2]
[396484911,1764988238730,-500.0,0.00011915,2]
[396484912,1764988238739,-1151.22,0.00011915,2]
[396484913,1764988238748,-500.0,0.00011915,2]
[396484914,1764988238757,-706.92,0.00011915,2]
[396484915,1764988238767,-500.0,0.00011915,2]
[396484916,1764988238776,-500.0,0.00011915,2]
[396484917,1764988238785,-500.0,0.00011915,2]
[396484918,1764988238794,-500.0,0.00011915,2]
[396484919,1764988238803,-500.0,0.00011915,2]
[396484920,1764988238813,-500.0,0.00011915,2]
[396484921,1764988238822,-500.0,0.00011915,2]
[396484922,1764988238832,-1530.41,0.00011915,2]
[396484923,1764988238842,-500.0,0.00011915,2]
[396484924,1764988238851,-544.76,0.00011915,2]
[396484925,1764988238860,-1428.03,0.00011915,2]